Cogmind - Beta 14 @@@ ROGUE MODE // 2024.08.09 @ 23:23:16 Player: Jammed Result: Destroyed by 01-S5H(R) with Subdweller Laser Performance ------------- Evolutions (0) 0 Regions Visited (2) 400 Robots Destroyed (22) 110 Value Destroyed (398) 398 Prototype IDs (0) 0 Alien Tech Used (0) 0 Bonus (0) 0 TOTAL SCORE: 908 Bonus ------- None Cogmind --------- Core Integrity 0/250 Matter 296/300 Energy 247/250 System Corruption 0% Temperature Cool (6) Movement Treading (240) Ox1 Location -10/Subcaves Parts ------- > --- POWER (1) -------- Ion Engine > --- PROPULSION (2) --- Light Treads Light Treads > --- UTILITY (2) ------ High-capacity Storage Unit Seismic Detector > --- WEAPON (2) ------- Particle Gun Light Cannon > --- INVENTORY (20) --- Light Treads Small Storage Unit Subdweller Optics Subdweller Optics Seismic Detector Subdweller Machine Gun Grenade Launcher Mining Laser Peak State ------------ > --- POWER ------------ Ion Engine > --- PROPULSION ------- Light Treads Light Treads > --- UTILITY ---------- High-capacity Storage Unit Seismic Detector > --- WEAPON ----------- Particle Gun Light Cannon > --- INVENTORY -------- Light Treads Small Storage Unit Subdweller Optics Subdweller Optics Seismic Detector Subdweller Machine Gun Grenade Launcher Mining Laser [Rating: 9] Favorites ----------- Power Ion Engine Engine Ion Engine Propulsion Wheel Treads Light Treads Leg Aluminum Leg Wheel Wheel Utility Seismic Detector Device Seismic Detector Storage High-capacity Storage Unit Weapon Light Assault Rifle Energy Gun Medium Laser Ballistic Gun Light Assault Rifle Ballistic Cannon Light Cannon Special Weapon Mining Laser Build | -11 -10 -10 ------- Run | Yrd Mat Sub Slots Evolved . | . . . Power . | . . . Propulsion . | . . . Utility . | . . . Weapon . | . . . Parts Attached 16 | 1 7 8 Power 1 | . . 1 Engine 1 | . . 1 Core . | . . . Reactor . | . . . Propulsion 5 | . 3 2 Treads 2 | . . 2 Leg . | . . . Wheel 3 | . 3 . Hover . | . . . Flight . | . . . Utility 3 | 1 2 . Device 1 | 1 . . Storage 2 | . 2 . Processor . | . . . Hackware . | . . . Protection . | . . . Artifact . | . . . Weapon 7 | . 2 5 Energy Gun 3 | . 1 2 Energy Cannon . | . . . Ballistic Gun 1 | . . 1 Ballistic Cannon 1 | . . 1 Launcher . | . . . Special Weapon 2 | . 1 1 Impact Weapon . | . . . Slashing Weapon . | . . . Piercing Weapon . | . . . Special Melee Weapon . | . . . Unidentified Prototypes . | . . . Parts Lost 6 | . 2 4 Power 1 | . 1 . Propulsion 3 | . 1 2 Utility . | . . . Weapon 2 | . . 2 Highest Loss Streak 2 | . 1 2 To Critical Strikes . | . . . Average Slot Usage (%) 92 | . 94 90 Engine 8 | . 8 7 Treads 5 | . . 14 Wheel 21 | . 27 11 Device 14 | . 14 14 Storage 14 | . 14 14 Energy Gun 12 | . 11 13 Ballistic Gun 12 | . 14 9 Ballistic Cannon 1 | . . 2 Special Weapon 2 | . 2 1 Peak Build Rating 9 | 7 8 9 Average Rating 7 | 6 7 7 On Entrance 6 | 6 7 7 Naked Turns . | . . . Heaviest Build 52 | 14 49 52 Greatest Support 40 | 20 26 40 Greatest Overweight (x) 2 | . 2 2 Average Overweight (x) . | . 1 1 Largest Inventory Capacity 20 | 8 20 20 Average Capacity 17 | 8 18 20 Most Carried 9 | 6 9 9 Average Carried 7 | 5 8 8 Final Capacity 20 | 8 20 20 Final Carried 9 | 6 9 8 Class Distribution -------------------- 100% | Mutant Dominant Class ---------------- Mutant | -10/Materials Mutant | -10/Subcaves Resources | -11 -10 -10 ----------- Run | Yrd Mat Sub Matter Collected 430 | 232 89 109 Remotely . | . . . Salvage Created 660 | 173 388 99 Parts 49 | 16 28 5 Haulers Intercepted 1 | . 1 . Recyclers Shooed . | . . . Parts Field Recycled . | . . . Retrieved Matter . | . . . Parts Self-Destructed 10 | . . 10 Prevented . | . . . Kills | -11 -10 -10 ------- Run | Yrd Mat Sub Combat Hostiles Destroyed 13 | . 11 2 Guns 12 | . 11 1 Cannons 1 | . . 1 Classes Destroyed 7 | 2 4 1 Tunneler 5 | 5 . . Hauler 1 | . 1 . Recycler 1 | 1 . . Watcher 2 | . 2 . Swarmer 6 | . 6 . Grunt 5 | . 5 . Subdweller 2 | . . 2 Best Kill Streak 3 | 1 3 1 Combat Bots Only 3 | . 3 1 Max Kills in Single Turn 1 | 1 1 1 Gunslinging . | . . . Exploded . | . . . Melee . | . . . Uniques/NPCs Destroyed . | . . . Combat | -11 -10 -10 -------- Run | Yrd Mat Sub Hostile Shots Fired 69 | . 51 18 Missed 16 | . 13 3 Damage Taken 739 | . 369 370 Core 254 | . 62 192 Absorbed by Shields . | . . . Core Remaining (%) 100 | 100 . . Volleys Fired 95 | 25 54 16 Largest 2 | 2 2 2 Hottest 100 | 70 100 100 Shots Fired 172 | 49 96 27 Gun 153 | 49 84 20 Cannon 2 | . . 2 Launcher . | . . . Special 17 | . 12 5 Kinetic 78 | 25 42 11 Thermal 94 | 24 54 16 Explosive . | . . . Electromagnetic . | . . . Robot Hit Streak 10 | 5 8 10 Robot Miss Streak 4 | 3 4 1 Penetration Max . | . . . Secondary Targets 1 | . 1 . Max Gunslinging Chain 1 | . 1 . Shots Hit Robots 94 | 26 48 20 Core Hits 39 | 11 24 4 Critical Kills . | . . . Critical Parts Destroyed . | . . . Critical Strikes 3 | . 3 . Burn 3 | . 3 . Melee Attacks . | . . . Impact . | . . . Slashing . | . . . Piercing . | . . . Sneak Attacks . | . . . Combat Hostiles . | . . . Follow-up Attacks . | . . . Damage Inflicted 1014 | 259 520 235 Guns 978 | 259 520 199 Cannons 36 | . . 36 Explosions . | . . . Melee . | . . . Ramming . | . . . Kinetic 415 | 119 178 118 Thermal 599 | 140 342 117 Explosive . | . . . Electromagnetic . | . . . Impact . | . . . Slashing . | . . . Piercing . | . . . Highest Corruption . | . . . Average Corruption . | . . . Corruption Purged . | . . . Corruption Blocked . | . . . Overload Shots . | . . . Overflow Damage . | . . . Projectiles . | . . . Explosions . | . . . Melee . | . . . Knockbacks . | . . . Impact . | . . . Kinetic . | . . . Secondary . | . . . Self-Inflicted Damage . | . . . Shots . | . . . Rammed . | . . . Targets Rammed . | . . . Kicked . | . . . Crushed . | . . . Highest Temperature 254 | 100 165 254 Average Temperature 54 | 38 53 136 Received Heat Transfer 503 | . 117 386 Siege Activations . | . . . Robots Corrupted . | . . . Combat Hostiles . | . . . Parts Fried . | . . . Impact Corruptions . | . . . Robots Melted . | . . . Combat Hostiles . | . . . Parts Melted 1 | 1 . . Heat Transferred 1924 | 407 1184 333 Parts Sabotaged . | . . . Parts Stolen . | . . . Parts Stripped . | . . . Power Chain Reactions . | . . . Alert | -11 -10 -10 ------- Run | Yrd Mat Sub Peak Influence 243 | 30 243 . Initial 19 | . 19 . Average 123 | 14 150 . Maximum Alert Level 1 | . 1 . Low Security (%) 77 | 100 71 . Level 1 22 | . 28 . Level 2 . | . . . Level 3 . | . . . Level 4 . | . . . Level 5 . | . . . High Security . | . . . Max Security . | . . . Squads Dispatched 2 | . 2 . Investigation 1 | . 1 . Extermination . | . . . Reinforcement 1 | . 1 . Assault . | . . . Garrison . | . . . Intercept . | . . . Searches Triggered . | . . . Construction Impeded . | . . . Haulers Reinforced . | . . . Active Scanning Responses . | . . . Cargo Convoy Interrupts . | . . . Stealth | -11 -10 -10 --------- Run | Yrd Mat Sub Distress Signals 2 | . 2 . Communications Jammed . | . . . Distress Signals . | . . . Times Spotted 20 | . 17 3 Peak Tracking Total 5 | . 5 1 Tactical Retreats 2 | . 2 . Traps | -11 -10 -10 ------- Run | Yrd Mat Sub Traps Triggered 1 | . 1 . Indirectly . | . . . Trap Hack Attempts . | . . . Triggered . | . . . Disarmed . | . . . Reprogrammed . | . . . Reused . | . . . Traps Extracted . | . . . Installed . | . . . Triggered . | . . . Machines | -11 -10 -10 ---------- Run | Yrd Mat Sub Machines Disabled . | . . . Max in Single Turn . | . . . Machines Repaired . | . . . Machines Dismantled . | . . . Machines Sabotaged . | . . . Overloaded Fab Kills . | . . . Hacking | -11 -10 -10 --------- Run | Yrd Mat Sub Machines Accessed 4 | . 4 . Terminals 4 | . 4 . Fabricators . | . . . Repair Stations . | . . . Recycling Units . | . . . Scanalyzers . | . . . Garrison Access . | . . . Total Hacks 10 | . 10 . Successful 6 | . 6 . Failed 3 | . 3 . Catastrophic . | . . . Database Lockouts 1 | . 1 . Manual 7 | . 7 . Terminals 10 | . 10 . Fabricators . | . . . Repair Stations . | . . . Recycling Units . | . . . Scanalyzers . | . . . Garrison Access . | . . . Terminal Hacks 4 | . 4 . Robot Analysis 4 | . 4 . Fabricator Hacks . | . . . Repair Station Hacks . | . . . Recycling Unit Hacks . | . . . Scanalyzer . | . . . Garrison Access Hacks . | . . . Unauthorized Hacks 2 | . 2 . Terminals 2 | . 2 . Botnet 2 | . 2 . Fabricators . | . . . Repair Stations . | . . . Recycling Units . | . . . Scanalyzers . | . . . Garrison Access . | . . . Data Cores Recovered . | . . . Used . | . . . Hacking Detections 4 | . 4 . Full Trace Events . | . . . Feedback Events . | . . . Feedback Blocked . | . . . Robot Schematics Acquired . | . . . Robots Built . | . . . Authchips . | . . . Time . | . . . Total Robot Build Rating . | . . . Part Schematics Acquired . | . . . Parts Built . | . . . Authchips . | . . . Time . | . . . Total Part Build Rating . | . . . Parts Repaired . | . . . Time . | . . . Parts Recycled . | . . . Recycled Matter . | . . . Retrieved Matter . | . . . Retrieved Components . | . . . Parts Scanalyzed . | . . . Part Schematics Acquired . | . . . Parts Damaged . | . . . Bothacking | -11 -10 -10 ------------ Run | Yrd Mat Sub Used RIF Installer . | . . . Robots Hacked . | . . . Non-combat . | . . . Combat . | . . . Robot Hacks Applied . | . . . Relay Couplers Released . | . . . Fabnet Peak Effective % . | . . . Robots Rewired . | . . . Allies Hacked . | . . . Hacks Repelled . | . . . Allies | -11 -10 -10 -------- Run | Yrd Mat Sub Total Allies . | . . . Largest Group . | . . . Highest-Rated Group . | . . . Highest-Rated Ally . | . . . Total Orders . | . . . Ally Attacks . | . . . Total Damage . | . . . Kills . | . . . Allies Corrupted . | . . . Allies Melted . | . . . Intel | -11 -10 -10 ------- Run | Yrd Mat Sub Robot Analysis Total 4 | . 4 . Derelict Logs Recovered . | . . . Drone Launches . | . . . Drone Recoveries . | . . . Exploration | -11 -10 -10 ------------- Run | Yrd Mat Sub Turns Passed 1373 | 179 710 484 Spaces Moved 624 | 90 334 200 Core . | . . . Treads 96 | . . 96 Legs 97 | 90 7 . Wheels 431 | . 327 104 Hover . | . . . Flight . | . . . Fastest Speed 95 | 120 95 105 Average Speed 127 | 120 103 170 Slowest Speed 240 | 120 190 240 Overloaded Moves . | . . . Propulsion Burnouts . | . . . Robots Hopped . | . . . Cave-ins Triggered . | . . . Exploration Rate (%) 25 | 5 57 15 Regions Visited 2 Branch Regions 1 Pre-discovered Areas 1 | . . 1 Known Exits Taken . | . . . Unknown Exits Taken 2 | 1 1 . Scrap Searched . | . . . Spaces Dug 1 | . 1 . Terrain Destroyed 3 | . 3 . Melee . | . . . Projectile 3 | . 3 . AOE . | . . . Terrain Rammed . | . . . Walls Destroyed . | . . . Machines Disabled . | . . . Actions | -11 -10 -10 --------- Run | Yrd Mat Sub Total 1012 | 117 587 308 Wait 265 | . 185 80 Move 622 | 89 333 200 Hop . | . . . Pick Up 10 | 1 5 4 Fast Attach 1 | 1 . . Attach 8 | . 3 5 Detach . | . . . Swap 7 | . 4 3 Drop 4 | 1 3 . Fire 95 | 25 54 16 Melee . | . . . Ram . | . . . Kick . | . . . Crush . | . . . Escape Stasis . | . . . Rewire . | . . . Trap . | . . . Miscellaneous . | . . . Route ------- -11/Scrapyard -10/Materials (discovered 3 exits: [*Mat] / [*Min] / [*Sub]) -10/Subcaves History --------- Turn | Location | Event 15 | -11/Scrapyard | Discovered new exit (range 3) 180 | -11/Scrapyard | Entered Materials 311 | -10/Materials | Build established: Mutant 546 | -10/Materials | Central database locked down 647 | -10/Materials | Discovered new exit (range 12) 731 | -10/Materials | Discovered new exit (range 7) 872 | -10/Materials | Discovered new exit (range 3) 890 | -10/Materials | Entered Subcaves 910 | -10/Subcaves | Learned location of Zion (-7) 910 | -10/Subcaves | Met a Zionite searching for "candidates" 1113 | -10/Subcaves | Core integrity fell below 50% 1121 | -10/Subcaves | Core integrity fell below 20% 1374 | -10/Subcaves | Destroyed by 01-S5H(R) with Subdweller Laser Last Messages --------------- World map updated: -7/Zion. 00916_ XC-IJG(u) builds Twisted Machinery. 01082_ Acquired 52 matter. 01083_ Wheel destroyed. 01106_ Critical hit (Meltdown: +290). 01112_ Com. Wheel destroyed. 01121_ GB-VQQ(R) destroyed. 01131_ Acquired Sub. Optics. 01132_ Acquired 33 matter. 01134_ Subatomizers dissect the Disposable Heat Sink. 01137_ Acquired Lgt. Cannon. 01172_ Subatomizers dissect the Disposable Heat Sink. 01272_ Lgt. Assault Rifle destroyed. 01275_ Med. Laser destroyed. 01295_ SU-TG1(R) destroyed. 01298_ Acquired 24 matter. 01303_ Acquired Sub. Machine Gun. 01305_ Subatomizers dissect the Disposable Heat Sink. 01306_ Acquired Sub. Optics. 01318_ Subatomizers dissect the Disposable Heat Sink. Map ----- +----------------------------------------------------+ | ????????????## ?????????????????????????????????? | | ???????????## ????????????????????????????????? | | ???????????? ????????????????????????????????? | | ???????????? ????????????????????????????????? | | #???????????# ?????????????????????????????????? | | ???????????# ?????????????????????????????????? | | #???????#### #?????????????????????????????????? | | ##??????# #?????????????????????????????????? | | #?????## ##??#####?????????????????????????? | | #????## #### ##????????????????????????? | | ##???# #?????????##?????????????? | | ##??# ##???????? #?????????????? | | ##??# #??????? ##????????????? | | ###??# ##?####? #????????????? | | # #### ### ## ##???????????? | | ## ## ???????????? | | ## " """" ## ????????????? | | #######"""""" ?????????????? | | ##?????##""""" #????????????????? | | ##???????##"""" ##???????????????? | | ##?????????#" " #######?????????? | | ##??????????#" """"## #?????????? | | ##??????? """"""#### #??????????? | | ###???? """"""""#??# #??????????? | | #???? ? " """""#??## #??????????? | | #?????????????""????##@ ######?????? | | ##?????????????????##?##R #?????? | | ##??????????????????#"### ##????? | | ##???????????????????#" #????? | | #????????????????????#" ### ##????? | | ?????????????????????#"" ###! ##?????? | | ?????????????????????##" ## ## ##%& #??????? | | ??????????????????????# ###### ## #?????? | | ??????????????????? ##????# % #? #????? | | ??????????????? ##??# #? ##????? | | ??????????? #### ##???# ##??####?????? | | ?????????? ?????## #????# ##????????????? | | ?????????????????????##?????# #?????????????? | | ????????????????????????????## ####?????????????? | | ?????????????????????????????###?????????????????? | | ?????????????????????????????????????????????????? | | ?????????????????????????????????????????????????? | | ?????????????????????????????????????????????????? | | ?????????????????????????????????????????????????? | | ?????????????????????????????????????????????????? | | ?????????????????????????????????????????????????? | | ?????????????????????????????????????????????????? | | ?????????????????????????????????????????????????? | | ?????????????????????????????????????????????????? | | ?????????????????????????????????????????????????? | +----------------------------------------------------+ Best States ------------- Heat Dissipation 25 Energy Generation 10 Energy Capacity 250 Matter Stores 300 Matter Capacity 300 Sight Range 16 Terrain Scan Density 10 Evasion (%) 55 Recoil Reduction 2 Item Schematics ----------------- None Robot Schematics ------------------ None Fabricated ------------ Nothing Alien Tech Used ----------------- None Achievements -------------- None Challenges ------------ None Game ------ Seed ProcessingRocketSpoofer Manual? 0 Play Time 00:09:32 Cumulative 185.8 hours Start 2024.08.09 @ 23:15:41 End 2024.08.09 @ 23:23:16 Sessions 1 Manual Loads 0 Difficulty Rogue Special Mode None Game No. 121 Rogue 121 Adventurer 0 Explorer 0 Win Type - Total 2 Types 1/0/0/1/0/0/0/0/0 Lore% 57 Gallery% 59 Achievement% 57 Wizard Run 0 Options --------- Layout 0 ASCII 0 Keyboard 0 Movement Mouse Keybinds 0 Fullscreen 1 Font 18/SmallcapsGlow Map View 76x50 Zoom Use 0% Tactical HUD 1 Map Filters NONE Filters NONE Steam 1 RUN: 0b61a06a-1e1e-4b30-a125-d4a8edbd21ae